fUST/lending_fUST_20240805
["ID","MTS","AMOUNT","RATE_DAILY","PERIOD"]
[334247201,1722858652274,-972.44,0.00042739,31]
[334247202,1722858652283,-500.0,0.00042739,31]
[334247203,1722858652294,-500.0,0.00042739,31]
[334247204,1722858652303,-500.0,0.00042739,31]
[334247205,1722858652314,-500.0,0.00042739,31]
[334247206,1722858652323,-971.79,0.00042739,31]
[334247207,1722858652333,-500.0,0.00042739,31]
[334247208,1722858652355,-500.0,0.00042739,31]
[334247209,1722858652365,-528.61611395,0.00042739,31]
[334247210,1722858652376,-500.0,0.00042739,31]
[334247211,1722858652386,-1113.86,0.00042739,31]
[334247212,1722858652395,-500.0,0.00042739,31]
[334247213,1722858652406,-500.0,0.00042739,31]
[334247214,1722858652415,-1145.14,0.00042739,31]
[334247215,1722858652425,-709.08,0.00042739,31]
[334247216,1722858652435,-500.0,0.00042739,31]
[334247217,1722858652444,-500.0,0.00042739,31]
[334247218,1722858652455,-500.0,0.00042739,31]
[334247219,1722858652465,-546.82642054,0.00042739,31]
[334247220,1722858652474,-500.0,0.00042739,31]
[334247221,1722858652484,-1087.27,0.00042739,31]
[334247222,1722858652495,-248.04395445,0.00042739,31]
[334247223,1722858652505,-500.0,0.00042739,31]
[334247224,1722858652515,-500.0,0.00042739,31]
[334247225,1722858652525,-500.0,0.00042739,31]
[334247226,1722858652534,-786.2,0.00042739,31]
[334247227,1722858652543,-500.0,0.00042739,31]
[334247228,1722858652553,-500.0,0.00042739,31]
[334247229,1722858652562,-970.6,0.00042739,31]
[334247230,1722858652572,-905.22,0.00042739,31]
[334247231,1722858652582,-500.0,0.00042739,31]
[334247232,1722858652602,-776.24,0.00042739,31]
[334247233,1722858652612,-804.68,0.00042739,31]
[334247234,1722858652621,-500.0,0.00042739,31]
[334247235,1722858652631,-620.17,0.00042739,31]
[334247236,1722858652641,-500.0,0.00042739,31]
[334247237,1722858652651,-500.0,0.00042739,31]
[334247238,1722858652660,-500.0,0.00042739,31]
[334247239,1722858652670,-500.0,0.00042739,31]
[334247240,1722858652680,-500.0,0.00042739,31]
[334247241,1722858652689,-500.0,0.00042739,31]
[334247242,1722858652699,-500.0,0.00042739,31]
[334247243,1722858652708,-781.21,0.00042739,31]
[334247244,1722858652719,-500.0,0.00042739,31]
[334247245,1722858652728,-500.0,0.00042739,31]
[334247246,1722858652738,-500.0,0.00042739,31]
[334247247,1722858652748,-500.0,0.00042739,31]
[334247248,1722858652757,-500.0,0.00042739,31]
[334247249,1722858652767,-500.0,0.00042739,31]
[334247250,1722858652776,-1246.16,0.00042739,31]
[334247251,1722858652785,-500.0,0.00042739,31]
[334247252,1722858652796,-500.0,0.00042739,31]
[334247253,1722858652805,-567.69,0.00042739,31]
[334247254,1722858652815,-500.0,0.00042739,31]
[334247255,1722858652824,-578.94,0.00042739,31]
[334247256,1722858652834,-1109.93,0.00042739,31]
[334247257,1722858652851,-583.0,0.00042739,31]
[334247258,1722858652861,-1353.58,0.00042739,31]
[334247259,1722858652870,-500.0,0.00042739,31]
[334247260,1722858652879,-851.88,0.00042739,31]
[334247261,1722858652888,-362.47933453,0.00042739,31]
[334247262,1722858652897,-857.62,0.00042739,31]
[334247263,1722858652906,-2208.56,0.00042739,31]
[334247264,1722858652916,-500.0,0.00042739,31]
[334247265,1722858652925,-1265.14,0.00042739,31]
[334247266,1722858652934,-507.6387897,0.00042739,31]
[334247267,1722858652943,-500.0,0.00042739,31]
[334247268,1722858652953,-532.70928879,0.00042739,31]
[334247269,1722858652962,-500.0,0.00042739,31]
[334247270,1722858652972,-677.4,0.00042739,31]
[334247271,1722858652981,-500.0,0.00042739,31]
[334247272,1722858652991,-538.06,0.00042739,31]
[334247273,1722858653000,-500.0,0.00042739,31]
[334247274,1722858653012,-500.0,0.00042739,31]
[334247275,1722858653022,-868.2,0.00042739,31]
[334247276,1722858653031,-500.0,0.00042739,31]
[334247277,1722858653041,-500.0,0.00042739,31]
[334247278,1722858653052,-542.21828973,0.00042739,31]
[334247279,1722858653061,-500.0,0.00042739,31]
[334247280,1722858653071,-1389.5,0.00042739,31]
[334247281,1722858653085,-946.17,0.00042739,31]
[334247282,1722858653099,-585.89,0.00042739,31]
[334247283,1722858653108,-500.0,0.00042739,31]
[334247284,1722858653121,-500.0,0.00042739,31]
[334247285,1722858653132,-500.0,0.00042739,31]
[334247286,1722858653142,-500.0,0.00042739,31]
[334247287,1722858653153,-10660.28,0.00042739,31]
[334247288,1722858653163,-500.0,0.00042739,31]
[334247289,1722858653172,-582.55,0.00042739,31]
[334247290,1722858653182,-1300.75,0.00042739,31]
[334247291,1722858653192,-863.4,0.00042739,31]
[334247292,1722858653201,-500.0,0.00042739,31]
[334247293,1722858653218,-500.0,0.00042739,31]
[334247294,1722858653228,-2570.37,0.00042739,21]
[334247295,1722858653238,-500.0,0.00042739,31]
[334247296,1722858653247,-500.0,0.00042739,31]
[334247297,1722858653256,-500.0,0.00042739,31]
[334247298,1722858653266,-500.0,0.00042739,31]
[334247299,1722858653275,-4054.43,0.00042739,31]
[334247300,1722858653285,-1621.97,0.00042739,31]
[334247301,1722858653295,-1994.29,0.00042739,31]
[334247302,1722858653304,-1448.49,0.00042739,31]
[334247303,1722858653313,-500.0,0.00042739,31]
[334247304,1722858653323,-500.0,0.00042739,31]
[334247305,1722858653333,-840.38,0.00042739,31]
[334247306,1722858653347,-838.77,0.00042739,31]
[334247307,1722858653357,-1958.07,0.00042739,31]
[334247308,1722858653367,-500.0,0.00042739,31]
[334247309,1722858653377,-1150.09,0.00042739,31]
[334247310,1722858653386,-611.29,0.00042739,31]
[334247311,1722858653396,-500.0,0.00042739,31]
[334247312,1722858653406,-1001.78,0.00042739,31]
[334247313,1722858653416,-500.0,0.00042739,31]
[334247314,1722858653426,-1614.0,0.00042739,31]
[334247315,1722858653436,-500.0,0.00042739,31]
[334247316,1722858653447,-500.0,0.00042739,31]
[334247317,1722858653458,-513.97,0.00042739,31]
[334247318,1722858653468,-500.0,0.00042739,31]
[334247319,1722858653477,-2620.63,0.00042739,31]
[334247320,1722858653488,-500.0,0.00042739,31]
[334247321,1722858653501,-1190.03,0.00042739,31]
[334247322,1722858653511,-500.0,0.00042739,31]
[334247323,1722858653521,-500.0,0.00042739,31]
[334247324,1722858653531,-2575.46,0.00042739,31]
[334247325,1722858653540,-901.37,0.00042739,31]
[334247326,1722858653550,-755.19,0.00042739,31]
[334247327,1722858653559,-641.02,0.00042739,31]
[334247328,1722858653570,-500.0,0.00042739,31]
[334247329,1722858653579,-739.77,0.00042739,31]
[334247330,1722858653592,-500.0,0.00042739,31]
[334247331,1722858653601,-500.0,0.00042739,31]
[334247332,1722858653611,-500.0,0.00042739,31]
[334247333,1722858653620,-500.0,0.00042739,31]
[334247334,1722858653629,-500.0,0.00042739,31]
[334247335,1722858653639,-1876.7,0.00042739,31]
[334247336,1722858653649,-717.15,0.00042739,31]
[334247337,1722858653659,-285.57315839,0.00042739,31]
[334247338,1722858653669,-500.0,0.00042739,31]
[334247339,1722858653679,-500.0,0.00042739,31]
[334247340,1722858653689,-500.0,0.00042739,31]
[334247341,1722858653699,-500.0,0.00042739,31]
[334247342,1722858653708,-500.0,0.00042739,31]
[334247343,1722858653718,-707.91,0.00042739,31]
[334247344,1722858653727,-1398.1,0.00042739,31]
[334247345,1722858653737,-562.02,0.00042739,31]
[334247346,1722858653748,-649.45,0.00042739,31]
[334247347,1722858653759,-702.2,0.00042739,31]
[334247348,1722858653769,-7191.63,0.00042739,31]
[334247349,1722858653779,-3672.46,0.00042739,31]
[334247350,1722858653788,-591.62,0.00042739,31]
[334247351,1722858653799,-500.0,0.00042739,31]
[334247352,1722858653809,-5193.88,0.00042739,31]
[334247353,1722858653818,-654.08,0.00042739,31]
[334247354,1722858653828,-1593.52,0.00042739,31]
[334247355,1722858653842,-515.12,0.00042739,31]
[334247356,1722858653851,-233.18478093,0.00042739,31]
[334247357,1722858653861,-500.0,0.00042739,31]
[334247358,1722858653875,-500.0,0.00042739,31]
[334247359,1722858653887,-5573.7,0.00042739,120]
[334247360,1722858653897,-877.09,0.00042739,31]
[334247361,1722858653907,-2135.54,0.00042739,31]
[334247362,1722858653917,-698.5,0.00042739,31]
[334247363,1722858653927,-1604.52,0.00042739,31]
[334247364,1722858653936,-1099.71,0.00042739,31]
[334247365,1722858653946,-939.19,0.00042739,31]
[334247366,1722858653956,-500.0,0.00042739,31]
[334247367,1722858653965,-545.07,0.00042739,31]
[334247368,1722858653975,-672.37,0.00042739,31]
[334247369,1722858654132,-820.85,0.00042739,31]
[334247370,1722858654142,-500.0,0.00042739,31]
[334247371,1722858654154,-771.21,0.00042739,31]
[334247372,1722858654164,-844.96,0.00042739,31]
[334247373,1722858654174,-155.0,0.000428,48]
[334247374,1722858654184,-5000.0,0.00043,43]
[334247375,1722858654194,-1000.0,0.00043,43]
[334247376,1722858654205,-231.589999,0.00043,60]
[334247377,1722858654215,-288.0,0.00043,90]
[334247378,1722858654225,-164.0,0.00043,90]
[334247379,1722858654235,-288.0,0.00043014,90]
[334247380,1722858654247,-500.0,0.00043017,7]
[334247381,1722858654257,-400.0,0.00043042,2]
[334247382,1722858654268,-152.0,0.00043078,31]
[334247383,1722858654278,-152.0,0.00043078,31]
[334247384,1722858654288,-5112.574999,0.000432,120]
[334247385,1722858654298,-667.42,0.00043276,60]
[334247386,1722858654307,-667.42,0.00043286,60]
[334247387,1722858654318,-667.42,0.00043286,60]
[334247388,1722858654328,-667.42,0.00043286,60]
[334247389,1722858654341,-667.42,0.00043286,60]
[334247390,1722858654351,-151.0,0.00043287,14]
[334247391,1722858654361,-151.0,0.00043287,14]
[334247392,1722858654371,-151.0,0.00043287,14]
[334247393,1722858654381,-435.73957703,0.00043287,31]
[334247394,1722858654391,-500.0,0.00043287,31]
[334247395,1722858654400,-500.0,0.00043287,31]
[334247396,1722858654410,-500.0,0.00043287,31]
[334247397,1722858654420,-271.08905745,0.00043287,31]
[334247398,1722858654430,-1133.22,0.00043287,31]
[334247399,1722858654440,-500.0,0.00043287,31]
[334247400,1722858654450,-500.0,0.00043287,31]
[334247401,1722858654460,-1765.13,0.00043287,31]
[334247402,1722858654470,-290.60517253,0.00043287,7]
[334247403,1722858654480,-500.0,0.00043287,31]
[334247404,1722858654489,-557.5,0.00043287,31]
[334247405,1722858654500,-524.78,0.00043287,31]
[334247406,1722858654513,-500.0,0.00043287,31]
[334247407,1722858654524,-500.0,0.00043287,31]
[334247408,1722858654534,-500.0,0.00043287,31]
[334247409,1722858654546,-500.0,0.00043287,31]
[334247410,1722858654557,-565.47,0.00043287,31]
[334247411,1722858654566,-500.0,0.00043287,31]
[334247412,1722858654575,-500.0,0.00043287,31]
[334247413,1722858654585,-566.61,0.00043287,31]
[334247414,1722858654597,-500.0,0.00043287,31]
[334247415,1722858654606,-500.0,0.00043287,31]
[334247416,1722858654615,-500.0,0.00043287,31]
[334247417,1722858654625,-759.11,0.00043287,31]
[334247418,1722858654635,-500.0,0.00043287,31]
[334247419,1722858654644,-956.42,0.00043287,31]
[334247420,1722858654654,-500.0,0.00043287,31]
[334247421,1722858654664,-890.85,0.00043287,31]
[334247422,1722858654673,-500.0,0.00043287,31]
[334247423,1722858654683,-745.17,0.00043287,31]
[334247424,1722858654693,-500.0,0.00043287,31]
[334247425,1722858654703,-500.0,0.00043287,31]
[334247426,1722858654713,-830.63,0.00043287,31]
[334247427,1722858654722,-972.44,0.00043287,31]
[334247428,1722858654731,-500.0,0.00043287,31]
[334247429,1722858654741,-500.0,0.00043287,31]
[334247430,1722858654750,-500.0,0.00043287,31]
[334247431,1722858654760,-500.0,0.00043287,31]
[334247432,1722858654770,-971.79,0.00043287,31]
[334247433,1722858654779,-500.0,0.00043287,31]
[334247434,1722858654788,-500.0,0.00043287,31]
[334247435,1722858654798,-500.0,0.00043287,31]
[334247436,1722858654808,-1113.86,0.00043287,31]
[334247437,1722858654818,-500.0,0.00043287,31]
[334247438,1722858654827,-500.0,0.00043287,31]
[334247439,1722858654840,-709.08,0.00043287,31]
[334247440,1722858654849,-1145.14,0.00043287,31]
[334247441,1722858654858,-500.0,0.00043287,31]
[334247442,1722858654867,-500.0,0.00043287,31]
[334247443,1722858654876,-500.0,0.00043287,31]
[334247444,1722858654885,-500.0,0.00043287,31]
[334247445,1722858654895,-1087.27,0.00043287,31]
[334247446,1722858654905,-500.0,0.00043287,31]
[334247447,1722858654915,-500.0,0.00043287,31]
[334247448,1722858654926,-786.2,0.00043287,31]
[334247449,1722858654936,-556.88578657,0.00043287,31]
[334247450,1722858654946,-500.0,0.00043287,31]
[334247451,1722858654955,-970.6,0.00043287,31]
[334247452,1722858654966,-905.22,0.00043287,31]
[334247453,1722858654975,-500.0,0.00043287,31]
[334247454,1722858654986,-776.24,0.00043287,31]
[334247455,1722858654995,-804.68,0.00043287,31]
[334247456,1722858655005,-486.38812362,0.00043287,31]
[334247457,1722858655015,-620.17,0.00043287,31]
[334247458,1722858655025,-500.0,0.00043287,31]
[334247459,1722858655035,-500.0,0.00043287,31]
[334247460,1722858655045,-500.0,0.00043287,31]
[334247461,1722858655054,-500.0,0.00043287,31]
[334247462,1722858655066,-492.21705848,0.00043287,31]
[334247463,1722858655076,-500.0,0.00043287,31]
[334247464,1722858655091,-500.0,0.00043287,31]
[334247465,1722858655100,-781.21,0.00043287,31]
[334247466,1722858655110,-500.0,0.00043287,31]
[334247467,1722858655120,-603.67465389,0.00043287,31]
[334247468,1722858655137,-500.0,0.00043287,31]
[334247469,1722858655146,-500.0,0.00043287,31]
[334247470,1722858655157,-500.0,0.00043287,31]
[334247471,1722858655167,-500.0,0.00043287,31]
[334247472,1722858655176,-1246.16,0.00043287,31]
[334247473,1722858655185,-500.0,0.00043287,31]
[334247474,1722858655195,-500.0,0.00043287,31]
[334247475,1722858655205,-567.69,0.00043287,31]
[334247476,1722858655215,-500.0,0.00043287,31]
[334247477,1722858655225,-578.94,0.00043287,31]
[334247478,1722858655235,-1109.93,0.00043287,31]
[334247479,1722858655244,-583.0,0.00043287,31]
[334247480,1722858655254,-1353.58,0.00043287,31]
[334247481,1722858655264,-500.0,0.00043287,31]
[334247482,1722858655274,-851.88,0.00043287,31]
[334247483,1722858655284,-857.62,0.00043287,31]
[334247484,1722858655294,-2208.56,0.00043287,31]
[334247485,1722858655304,-500.0,0.00043287,31]
[334247486,1722858655314,-1265.14,0.00043287,31]
[334247487,1722858655323,-500.0,0.00043287,31]
[334247488,1722858655333,-677.4,0.00043287,31]
[334247489,1722858655347,-269.17806468,0.00043287,31]
[334247490,1722858655361,-538.06,0.00043287,31]
[334247491,1722858655371,-500.0,0.00043287,31]
[334247492,1722858655380,-500.0,0.00043287,31]
[334247493,1722858655390,-868.2,0.00043287,31]
[334247494,1722858655400,-500.0,0.00043287,31]
[334247495,1722858655410,-500.0,0.00043287,31]
[334247496,1722858655420,-500.0,0.00043287,31]
[334247497,1722858655429,-1389.5,0.00043287,31]
[334247498,1722858655439,-946.17,0.00043287,31]
[334247499,1722858655449,-585.89,0.00043287,31]
[334247500,1722858655459,-500.0,0.00043287,31]
[334247501,1722858655469,-500.0,0.00043287,31]
[334247502,1722858655478,-500.0,0.00043287,31]
[334247503,1722858655488,-534.34194701,0.00043287,31]
[334247504,1722858655497,-10660.28,0.00043287,31]
[334247505,1722858655508,-500.0,0.00043287,31]
[334247506,1722858655517,-582.55,0.00043287,31]
[334247507,1722858655528,-1300.75,0.00043287,31]
[334247508,1722858655538,-863.4,0.00043287,31]
[334247509,1722858655547,-500.0,0.00043287,31]
[334247510,1722858655557,-500.0,0.00043287,31]
[334247511,1722858655567,-2570.37,0.00043287,21]
[334247512,1722858655577,-500.0,0.00043287,31]
[334247513,1722858655586,-500.0,0.00043287,31]
[334247514,1722858655599,-500.0,0.00043287,31]
[334247515,1722858655609,-500.0,0.00043287,31]
[334247516,1722858655619,-4054.43,0.00043287,31]
[334247517,1722858655629,-1621.97,0.00043287,31]
[334247518,1722858655639,-1994.29,0.00043287,31]
[334247519,1722858655649,-1448.49,0.00043287,31]
[334247520,1722858655659,-473.95801233,0.00043287,31]
[334247521,1722858655669,-500.0,0.00043287,31]
[334247522,1722858655678,-840.38,0.00043287,31]
[334247523,1722858655688,-838.77,0.00043287,31]
[334247524,1722858655697,-1958.07,0.00043287,31]
[334247525,1722858655707,-500.0,0.00043287,31]
[334247526,1722858655717,-1150.09,0.00043287,31]
[334247527,1722858655728,-500.0,0.00043287,31]
[334247528,1722858655737,-611.29,0.00043287,31]
[334247529,1722858655747,-1001.78,0.00043287,31]
[334247530,1722858655756,-500.0,0.00043287,31]
[334247531,1722858655766,-1614.0,0.00043287,31]
[334247532,1722858655775,-500.0,0.00043287,31]
[334247533,1722858655784,-500.0,0.00043287,31]
[334247534,1722858655793,-513.97,0.00043287,31]
[334247535,1722858655802,-500.0,0.00043287,31]
[334247536,1722858655813,-2620.63,0.00043287,31]
[334247537,1722858655822,-500.0,0.00043287,31]
[334247538,1722858655832,-1190.03,0.00043287,31]
[334247539,1722858655845,-500.0,0.00043287,31]
[334247540,1722858655854,-500.0,0.00043287,31]
[334247541,1722858655863,-2575.46,0.00043287,31]
[334247542,1722858655872,-901.37,0.00043287,31]
[334247543,1722858655881,-755.19,0.00043287,31]
[334247544,1722858655891,-641.02,0.00043287,31]
[334247545,1722858655900,-500.0,0.00043287,31]
[334247546,1722858655910,-739.77,0.00043287,31]
[334247547,1722858655920,-500.0,0.00043287,31]
[334247548,1722858655930,-500.0,0.00043287,31]
[334247549,1722858655939,-371.95020409,0.00043287,31]
[334247550,1722858655949,-517.7,0.00043287,31]
[334247551,1722858655958,-500.0,0.00043287,31]
[334247552,1722858655968,-1876.7,0.00043287,31]
[334247553,1722858655978,-717.15,0.00043287,31]
[334247554,1722858655988,-500.0,0.00043287,31]
[334247555,1722858655998,-500.0,0.00043287,31]
[334247556,1722858656008,-223.60005718,0.00043287,31]
[334247557,1722858656018,-500.0,0.00043287,31]
[334247558,1722858656027,-500.0,0.00043287,31]
[334247559,1722858656037,-707.91,0.00043287,31]
[334247560,1722858656046,-1398.1,0.00043287,31]
[334247561,1722858656056,-562.02,0.00043287,31]
[334247562,1722858656072,-649.45,0.00043287,31]
[334247563,1722858656083,-702.2,0.00043287,31]
[334247564,1722858656100,-7191.63,0.00043287,31]
[334247565,1722858656111,-3672.46,0.00043287,31]
[334247566,1722858656123,-591.62,0.00043287,31]
[334247567,1722858656138,-500.0,0.00043287,31]
[334247568,1722858656149,-5193.88,0.00043287,31]
[334247569,1722858656161,-654.08,0.00043287,31]
[334247570,1722858656173,-1593.52,0.00043287,31]
[334247571,1722858656185,-515.12,0.00043287,31]
[334247572,1722858656196,-500.0,0.00043287,31]
[334247573,1722858656208,-500.0,0.00043287,31]
[334247574,1722858656219,-5573.7,0.00043287,120]
[334247575,1722858656231,-877.09,0.00043287,31]
[334247576,1722858656243,-2135.54,0.00043287,31]
[334247577,1722858656255,-698.5,0.00043287,31]
[334247578,1722858656265,-1604.52,0.00043287,31]
[334247579,1722858656276,-939.19,0.00043287,31]
[334247580,1722858656287,-1099.71,0.00043287,31]
[334247581,1722858656297,-500.0,0.00043287,31]
[334247582,1722858656308,-545.07,0.00043287,31]
[334247583,1722858656327,-672.37,0.00043287,31]
[334247584,1722858656348,-820.85,0.00043287,31]
[334247585,1722858656358,-500.0,0.00043287,31]
[334247586,1722858656369,-771.21,0.00043287,31]
[334247587,1722858656389,-844.96,0.00043287,31]
[334247588,1722858656399,-3039.40312855,0.000435,120]
[334247589,1722858656409,-152.0,0.00043512,31]
[334247590,1722858656419,-152.0,0.00043512,31]
[334247591,1722858656429,-667.42,0.00043834,60]
[334247592,1722858656438,-667.42,0.00043834,60]
[334247593,1722858656450,-667.42,0.00043834,60]
[334247594,1722858656460,-667.42,0.00043834,60]
[334247595,1722858656469,-667.43603376,0.00043834,60]
[334247596,1722858656480,-19339.69548442,0.00043835,15]
[334247597,1722858656491,-500.0,0.00043835,31]
[334247598,1722858656501,-272.71820398,0.00043835,31]
[334247599,1722858656511,-500.0,0.00043835,31]
[334247600,1722858656521,-1133.22,0.00043835,31]
[334247601,1722858656531,-500.0,0.00043835,31]
[334247602,1722858656541,-549.06912892,0.00043835,31]
[334247603,1722858656551,-1765.13,0.00043835,31]
[334247604,1722858656561,-500.0,0.00043835,31]
[334247605,1722858656571,-557.5,0.00043835,31]
[334247606,1722858656582,-524.78,0.00043835,31]
[334247607,1722858656595,-500.0,0.00043835,31]
[334247608,1722858656605,-500.0,0.00043835,31]
[334247609,1722858656615,-500.0,0.00043835,31]
[334247610,1722858656625,-500.0,0.00043835,31]
[334247611,1722858656635,-565.47,0.00043835,31]
[334247612,1722858656644,-500.0,0.00043835,31]
[334247613,1722858656654,-566.61,0.00043835,31]
[334247614,1722858656664,-500.0,0.00043835,31]
[334247615,1722858656673,-500.0,0.00043835,31]
[334247616,1722858656682,-500.0,0.00043835,31]
[334247617,1722858656693,-500.0,0.00043835,31]
[334247618,1722858656702,-759.11,0.00043835,31]
[334247619,1722858656712,-334.14068737,0.00043835,31]
[334247620,1722858656722,-956.42,0.00043835,31]
[334247621,1722858656732,-500.0,0.00043835,31]
[334247622,1722858656742,-10.48026011,0.00043835,31]
[334247623,1722858657126,-29.71910219,0.00043835,31]
[334247624,1722858658402,-1751.31827439,0.00041085,3]
[334247625,1722858658414,-2806.93112494,0.00041085,3]
[334247626,1722858658427,-1380.6493552,0.00041085,3]
[334247627,1722858658439,-2135.67124547,0.00041085,3]
[334247628,1722858658452,-1373.87461953,0.00041095,31]
[334247629,1722858658465,-39.95538047,0.00041095,31]
[334247630,1722858658475,-500.0,0.00041095,31]
[334247631,1722858658484,-1413.83,0.00041643,31]
[334247632,1722858658494,-1413.83,0.00042191,31]
[334247633,1722858658508,-1413.83,0.00042739,31]
[334247634,1722858658518,-1413.83,0.00043287,31]
[334247635,1722858658527,-850.6506377,0.00043835,31]
[334247636,1722858658537,-500.0,0.00043835,31]
[334247637,1722858658547,-745.17,0.00043835,31]
[334247638,1722858658557,-500.0,0.00043835,31]
[334247639,1722858658567,-500.0,0.00043835,31]
[334247640,1722858658576,-830.63,0.00043835,31]
[334247641,1722858658586,-972.44,0.00043835,31]
[334247642,1722858658600,-500.0,0.00043835,31]
[334247643,1722858658610,-500.0,0.00043835,31]
[334247644,1722858658619,-500.0,0.00043835,31]
[334247645,1722858658630,-500.0,0.00043835,31]
[334247646,1722858658639,-971.79,0.00043835,31]
[334247647,1722858658649,-600.0,0.00043835,120]
[334247648,1722858658659,-600.0,0.00043835,120]
[334247649,1722858658670,-600.0,0.00043835,120]
[334247650,1722858658679,-500.0,0.00043835,31]
[334247651,1722858658688,-614.959379,0.00043835,120]
[334247652,1722858658698,-500.0,0.00043835,31]
[334247653,1722858658707,-1113.86,0.00043835,31]
[334247654,1722858658717,-500.0,0.00043835,31]
[334247655,1722858658727,-500.0,0.00043835,31]
[334247656,1722858658736,-500.0,0.00043835,31]
[334247657,1722858658745,-709.08,0.00043835,31]
[334247658,1722858658755,-1145.14,0.00043835,31]
[334247659,1722858658765,-500.0,0.00043835,31]
[334247660,1722858658775,-500.0,0.00043835,31]
[334247661,1722858658784,-629.73203129,0.00043835,31]
[334247662,1722858658793,-500.0,0.00043835,31]
[334247663,1722858658802,-1087.27,0.00043835,31]
[334247664,1722858658812,-500.0,0.00043835,31]
[334247665,1722858658821,-500.0,0.00043835,31]
[334247666,1722858658831,-786.2,0.00043835,31]
[334247667,1722858658842,-500.0,0.00043835,31]
[334247668,1722858658861,-970.6,0.00043835,31]
[334247669,1722858658870,-905.22,0.00043835,31]
[334247670,1722858658879,-168.91304498,0.00043835,31]
[334247671,1722858658889,-776.24,0.00043835,31]
[334247672,1722858658898,-804.68,0.00043835,31]
[334247673,1722858658907,-620.17,0.00043835,31]
[334247674,1722858658917,-500.0,0.00043835,31]
[334247675,1722858658926,-500.0,0.00043835,31]
[334247676,1722858658935,-507.79525928,0.00043835,31]
[334247677,1722858658945,-500.0,0.00043835,31]
[334247678,1722858658954,-500.0,0.00043835,31]
[334247679,1722858658963,-500.0,0.00043835,31]
[334247680,1722858658972,-781.21,0.00043835,31]
[334247681,1722858658981,-196.97676585,0.00043835,31]
[334247682,1722858658990,-500.0,0.00043835,31]
[334247683,1722858658999,-500.0,0.00043835,31]
[334247684,1722858659008,-500.0,0.00043835,31]
[334247685,1722858659017,-524.06840003,0.00043835,31]
[334247686,1722858659026,-185.18530117,0.00043835,31]
[334247687,1722858670620,4392.88857797,0.00037901,2]
[334247688,1722858670643,1747.59958983,0.00037901,2]
[334247689,1722858670896,215.7100545,0.00032254,4]
[334247690,1722858673205,254.63533274,0.00032254,4]
[334247691,1722858679831,154.72922386,0.00032254,4]
[334247692,1722858679901,540.58076781,0.00032254,4]
[334247693,1722858681705,284.83809153,0.00032254,3]
[334247694,1722858683436,3579.08088145,0.00032254,4]
[334247695,1722858683458,1735.58254866,0.00032254,4]
[334247696,1722858683483,302.83422263,0.00032254,4]
[334247697,1722858749679,254.63533274,0.00032254,4]
[334247698,1722859645134,-162.329732,0.00014247,2]
[334247699,1722859645158,-464.611348,0.00021048,2]
[334247700,1722859650155,-918.12752336,0.00021048,2]